Cogmind - Beta 13 @@@ ROGUE MODE // 2024.04.22 @ 21:10:41 Player: Bace Troncons Result: Destroyed by YI-UF0 with YI-UF0's Doublenader Performance ------------- Evolutions (0) 0 Regions Visited (2) 400 Robots Destroyed (14) 70 Value Destroyed (372) 372 Prototype IDs (2) 40 Alien Tech Used (0) 0 Bonus (0) 0 TOTAL SCORE: 882 Bonus ------- None Cogmind --------- Core Integrity 0/250 Matter 209/300 Energy 85/100 System Corruption 0% Temperature Cool (0) Movement Treading (240) Ox1 Location -10/Mines Parts ------- > --- POWER (1) -------- (None) > --- PROPULSION (2) --- Light Treads > --- UTILITY (2) ------ Large Storage Unit Improved Targeting Computer > --- WEAPON (2) ------- Light Assault Rifle Light Assault Rifle > --- INVENTORY (15) --- Ion Engine Improved Treads Improved Treads VTOL Module VTOL Module VTOL Module VTOL Module Large Matter Pod (150) Datajack Peak State ------------ > --- POWER ------------ Light Nuclear Core > --- PROPULSION ------- Improved Treads Improved Treads > --- UTILITY ---------- Large Storage Unit Improved Targeting Computer > --- WEAPON ----------- Assault Rifle Assault Rifle > --- INVENTORY -------- Ion Engine Light Treads Light Treads Improved Treads Improved Treads VTOL Module VTOL Module VTOL Module VTOL Module Large Matter Pod Improved Targeting Computer Light Assault Rifle Light Assault Rifle Grenade Launcher Datajack [Rating: 14] Favorites ----------- Power Ion Engine Engine Ion Engine Power Core Light Nuclear Core Propulsion Improved Treads Treads Improved Treads Leg Aluminum Leg Utility Large Storage Unit Device Improved Heat Sink Storage Large Storage Unit Processor Improved Targeting Computer Weapon Assault Rifle Energy Gun Medium Laser Ballistic Gun Assault Rifle Launcher Grenade Launcher Build | -11 -10 -10 ------- Run | Yrd Mat Min Slots Evolved . | . . . Power . | . . . Propulsion . | . . . Utility . | . . . Weapon . | . . . Parts Attached 25 | 7 11 7 Power 2 | 1 . 1 Engine 1 | 1 . . Core 1 | . . 1 Reactor . | . . . Propulsion 7 | 3 2 2 Treads 6 | 2 2 2 Leg 1 | 1 . . Wheel . | . . . Hover . | . . . Flight . | . . . Utility 6 | 1 4 1 Device 1 | . 1 . Storage 3 | 1 2 . Processor 2 | . 1 1 Hackware . | . . . Protection . | . . . Artifact . | . . . Weapon 10 | 2 5 3 Energy Gun 2 | 2 . . Energy Cannon . | . . . Ballistic Gun 7 | . 5 2 Ballistic Cannon . | . . . Launcher 1 | . . 1 Special Weapon . | . . . Impact Weapon . | . . . Slashing Weapon . | . . . Piercing Weapon . | . . . Special Melee Weapon . | . . . Unidentified Prototypes . | . . . Parts Lost 8 | . . 8 Power 1 | . . 1 Propulsion 3 | . . 3 Utility 1 | . . 1 Weapon 3 | . . 3 Highest Loss Streak 8 | . . 8 To Critical Strikes . | . . . Average Slot Usage (%) 97 | . 96 98 Engine 13 | . 14 10 Treads 27 | . 28 27 Device 1 | . 1 . Storage 14 | . 14 14 Processor 10 | . 9 13 Energy Gun 12 | . 17 . Ballistic Gun 14 | . 10 27 Naked Turns . | . . . Heaviest Build 94 | 14 94 29 Greatest Support 46 | 40 46 46 Greatest Overweight (x) 2 | . 2 . Average Overweight (x) . | . . . Largest Inventory Capacity 25 | 8 25 15 Average Capacity 15 | 7 16 15 Most Carried 15 | 3 15 15 Average Carried 11 | 2 11 14 Final Capacity 15 | 8 15 15 Final Carried 15 | 3 15 9 Class Distribution -------------------- 100% | Mutant Dominant Class ---------------- Mutant | -10/Materials Mutant | -10/Mines Resources | -11 -10 -10 ----------- Run | Yrd Mat Min Matter Collected 733 | 208 389 136 Remotely . | . . . Salvage Created 575 | . 379 196 Parts 23 | . 14 9 Haulers Intercepted 1 | . 1 . Recyclers Shooed . | . . . Parts Field Recycled . | . . . Retrieved Matter . | . . . Parts Self-Destructed . | . . . Prevented . | . . . Kills | -11 -10 -10 ------- Run | Yrd Mat Min Combat Hostiles Destroyed 12 | . 7 5 Guns 11 | . 6 5 Classes Destroyed 4 | . 4 . Hauler 1 | . 1 . Recycler 1 | . 1 . Swarmer 4 | . 3 1 Grunt 8 | . 4 4 Best Kill Streak 3 | . 3 2 Combat Bots Only 3 | . 3 2 Max Kills in Single Turn 1 | . 1 1 Gunslinging . | . . . Exploded . | . . . Melee . | . . . Uniques/NPCs Destroyed . | . . . Combat | -11 -10 -10 -------- Run | Yrd Mat Min Hostile Shots Fired 92 | . 44 48 Missed 18 | . 9 9 Damage Taken 1393 | . 453 940 Core 259 | . 128 131 Absorbed by Shields . | . . . Regen/Repaired (Parts) 106 | . 106 . Core Remaining (%) 100 | 100 . . Volleys Fired 61 | . 39 22 Largest 2 | . 2 2 Hottest 100 | . 100 50 Shots Fired 120 | . 77 43 Gun 115 | . 77 38 Cannon . | . . . Launcher 5 | . . 5 Special . | . . . Kinetic 77 | . 39 38 Thermal 38 | . 38 . Explosive 5 | . . 5 Electromagnetic . | . . . Robot Hit Streak 21 | . 9 21 Robot Miss Streak 4 | . 4 3 Penetration Max . | . . . Secondary Targets . | . . . Shots Hit Robots 85 | . 52 33 Core Hits 29 | . 15 14 Critical Kills . | . . . Critical Parts Destroyed 1 | . 1 . Critical Strikes 7 | . 7 . Burn 5 | . 5 . Destroy 2 | . 2 . Melee Attacks . | . . . Impact . | . . . Slashing . | . . . Piercing . | . . . Sneak Attacks . | . . . Combat Hostiles . | . . . Follow-up Attacks . | . . . Damage Inflicted 1039 | . 629 410 Guns 994 | . 629 365 Cannons . | . . . Explosions 45 | . . 45 Melee . | . . . Ramming . | . . . Kinetic 695 | . 330 365 Thermal 299 | . 299 . Explosive 45 | . . 45 Electromagnetic . | . . . Impact . | . . . Slashing . | . . . Piercing . | . . . Highest Corruption . | . . . Average Corruption . | . . . Corruption Purged . | . . . Corruption Blocked . | . . . Overload Shots . | . . . Overflow Damage . | . . . Projectiles . | . . . Explosions . | . . . Melee . | . . . Knockbacks . | . . . Impact . | . . . Kinetic . | . . . Secondary . | . . . Self-Inflicted Damage . | . . . Shots . | . . . Rammed 1 | . 1 . Targets Rammed 1 | . 1 . Kicked . | . . . Crushed . | . . . Highest Temperature 240 | . 240 20 Average Temperature 68 | . 81 8 Received Heat Transfer 321 | . 111 210 Effects 2 | . 2 . Interference 2 | . 2 . Siege Activations . | . . . Robots Corrupted . | . . . Combat Hostiles . | . . . Parts Fried . | . . . Impact Corruptions . | . . . Robots Melted 1 | . 1 . Combat Hostiles 1 | . 1 . Parts Melted 4 | . 4 . Heat Transferred 1258 | . 1258 . Parts Sabotaged . | . . . Parts Stolen . | . . . Parts Stripped . | . . . Power Chain Reactions . | . . . Alert | -11 -10 -10 ------- Run | Yrd Mat Min Peak Influence 147 | . 132 147 Initial 27 | . . 27 Average 46 | . 47 50 Maximum Alert Level . | . . . Low Security (%) 100 | 100 100 100 Level 1 . | . . . Level 2 . | . . . Level 3 . | . . . Level 4 . | . . . Level 5 . | . . . High Security . | . . . Max Security . | . . . Squads Dispatched . | . . . Investigation . | . . . Extermination . | . . . Reinforcement . | . . . Assault . | . . . Garrison . | . . . Intercept . | . . . Searches Triggered . | . . . Construction Impeded . | . . . Haulers Reinforced . | . . . Active Scanning Responses . | . . . Cargo Convoy Interrupts . | . . . Stealth | -11 -10 -10 --------- Run | Yrd Mat Min Distress Signals 2 | . 2 . Communications Jammed . | . . . Distress Signals . | . . . Times Spotted 29 | . 20 9 Peak Tracking Total 5 | . 5 3 Tactical Retreats 3 | . 2 1 Traps | -11 -10 -10 ------- Run | Yrd Mat Min Traps Triggered . | . . . Indirectly . | . . . Trap Hack Attempts . | . . . Triggered . | . . . Disarmed . | . . . Reprogrammed 6 | . 6 . Reused 3 | . 3 . Traps Extracted . | . . . Installed . | . . . Triggered 3 | . 3 . Machines | -11 -10 -10 ---------- Run | Yrd Mat Min Machines Disabled . | . . . Max in Single Turn . | . . . Machines Repaired . | . . . Machines Dismantled . | . . . Machines Sabotaged . | . . . Overloaded Fab Kills . | . . . Hacking | -11 -10 -10 --------- Run | Yrd Mat Min Machines Accessed 9 | . 9 . Terminals 6 | . 6 . Fabricators . | . . . Repair Stations 1 | . 1 . Recycling Units 2 | . 2 . Scanalyzers . | . . . Garrison Access . | . . . Total Hacks 20 | . 20 . Successful 14 | . 14 . Failed 6 | . 6 . Catastrophic 1 | . 1 . Database Lockouts . | . . . Manual 2 | . 2 . Terminals 13 | . 13 . Fabricators . | . . . Repair Stations 4 | . 4 . Recycling Units 3 | . 3 . Scanalyzers . | . . . Garrison Access . | . . . Terminal Hacks 8 | . 8 . Prototype ID Bank 1 | . 1 . Level Access Points 1 | . 1 . Branch Access Points 1 | . 1 . Terminal Index 1 | . 1 . Locate Traps 1 | . 1 . Reprogram Traps 1 | . 1 . Registered Components 1 | . 1 . Zone Layout 1 | . 1 . Fabricator Hacks . | . . . Repair Station Hacks 4 | . 4 . Scan Component 2 | . 2 . Repair 2 | . 2 . Recycling Unit Hacks 2 | . 2 . Retrieve Components 2 | . 2 . Scanalyzer . | . . . Garrison Access Hacks . | . . . Unauthorized Hacks . | . . . Terminals . | . . . Fabricators . | . . . Repair Stations . | . . . Recycling Units . | . . . Scanalyzers . | . . . Garrison Access . | . . . Data Cores Recovered . | . . . Used . | . . . Hacking Detections 4 | . 4 . Full Trace Events . | . . . Feedback Events . | . . . Feedback Blocked . | . . . Robot Schematics Acquired . | . . . Robots Built . | . . . Authchips . | . . . Time . | . . . Total Robot Build Rating . | . . . Part Schematics Acquired . | . . . Parts Built . | . . . Authchips . | . . . Time . | . . . Total Part Build Rating . | . . . Parts Repaired 2 | . 2 . Time 52 | . 52 . Parts Recycled . | . . . Recycled Matter . | . . . Retrieved Matter . | . . . Retrieved Components 1 | . 1 . Parts Scanalyzed . | . . . Part Schematics Acquired . | . . . Parts Damaged . | . . . Bothacking | -11 -10 -10 ------------ Run | Yrd Mat Min Used RIF Installer . | . . . Robots Hacked . | . . . Non-combat . | . . . Combat . | . . . Robot Hacks Applied . | . . . Relay Couplers Released . | . . . Fabnet Peak Effective % . | . . . Robots Rewired . | . . . Allies Hacked . | . . . Hacks Repelled . | . . . Allies | -11 -10 -10 -------- Run | Yrd Mat Min Total Allies . | . . . Largest Group . | . . . Highest-Rated Group . | . . . Highest-Rated Ally . | . . . Total Orders . | . . . Ally Attacks . | . . . Total Damage . | . . . Kills . | . . . Allies Corrupted . | . . . Allies Melted . | . . . Intel | -11 -10 -10 ------- Run | Yrd Mat Min Robot Analysis Total . | . . . Derelict Logs Recovered 1 | . . 1 Drone Launches . | . . . Drone Recoveries . | . . . Exploration | -11 -10 -10 ------------- Run | Yrd Mat Min Turns Passed 2041 | 75 1455 511 Spaces Moved 935 | 43 633 259 Core 3 | 3 . . Treads 925 | 33 633 259 Legs 7 | 7 . . Wheels . | . . . Hover . | . . . Flight . | . . . Fastest Speed 50 | 50 160 160 Average Speed 173 | 145 180 160 Slowest Speed 320 | 160 320 160 Overloaded Moves . | . . . Propulsion Burnouts . | . . . Robots Hopped . | . . . Cave-ins Triggered . | . . . Exploration Rate (%) 50 | 5 94 51 Regions Visited 2 Branch Regions 1 Pre-discovered Areas 1 | . . 1 Known Exits Taken 1 | . 1 . Unknown Exits Taken 1 | 1 . . Scrap Searched 1 | . . 1 Spaces Dug . | . . . Terrain Destroyed 16 | . . 16 Melee . | . . . Projectile . | . . . AOE 16 | . . 16 Terrain Rammed . | . . . Walls Destroyed . | . . . Machines Disabled . | . . . Actions | -11 -10 -10 --------- Run | Yrd Mat Min Total 1241 | 52 875 314 Wait 181 | . 158 23 Move 933 | 42 632 259 Hop . | . . . Pick Up 24 | 3 20 1 Fast Attach 9 | 6 2 1 Attach 7 | . 1 6 Detach 2 | . 2 . Swap 9 | 1 8 . Drop 14 | . 12 2 Fire 61 | . 39 22 Melee . | . . . Ram . | . . . Kick . | . . . Crush 1 | . 1 . Escape Stasis . | . . . Rewire . | . . . Trap . | . . . Miscellaneous . | . . . Route ------- -11/Scrapyard -10/Materials (discovered 4 exits: *Mat x3 / *Min) -10/Mines (discovered 1 exit: *Mat) History --------- Turn | Location | Event 22 | -11/Scrapyard | Discovered new exit (range 16) 76 | -11/Scrapyard | Entered Materials 91 | -10/Materials | Discovered new exit (range 16) 171 | -10/Materials | Discovered new exit (range 10) 311 | -10/Materials | Build established: Mutant 668 | -10/Materials | Identified exit to Mines 830 | -10/Materials | Discovered new exit (range 16) 970 | -10/Materials | Identified exit to Materials 1255 | -10/Materials | Repaired Assault Rifle 1276 | -10/Materials | Derelicts attacked the area 1282 | -10/Materials | Repaired Assault Rifle 1526 | -10/Materials | Core integrity fell below 50% 1531 | -10/Materials | Entered Mines 1571 | -10/Mines | YI-UF0 nonchalantly dropped a Grenade Launcher on the ground 1591 | -10/Mines | Learned location of Storage (-8) 1682 | -10/Mines | Discovered exit to Materials (range 4) 2022 | -10/Mines | Core integrity fell below 20% 2042 | -10/Mines | Destroyed by YI-UF0 with YI-UF0's Doublenader Last Messages --------------- 02002_ Imp. Treads destroyed. 02003_ K-01 Serf collects debris. 02004_ Assault Rifle destroyed. 02008_ The unstable cave ceiling collapses. 02015_ T-07 Excavator destroyed. 02019_ YI-UF0 mumbles something. 02023_ Lgt. Nuclear Core destroyed. 02023_ Assault Rifle destroyed. 02029_ The unstable cave ceiling collapses. 02032_ Lgt. Treads destroyed. 02034_ The unstable cave ceiling collapses. 02034_ U-05 Engineer destroyed. 02034_ R-06 Scavenger destroyed. 02037_ The unstable cave ceiling collapses. 02038_ Aluminum Leg crushed. 02038_ Grenade Launcher destroyed. 02040_ YI-UF0 mumbles something. 02040_ The unstable cave ceiling collapses. 02040_ K-01 Serf collects debris. 02041_ R-06 Scavenger collects Wheel. Map ----- +----------------------------------------------------+ | ??????## ######?????# #?# ### ##??? | | ######## #?????# #?# ####?## #???? | | #???# #?## #?????# #???? | | ####### #??# #??### #?????# #???? | | #?????## #????# ##????# #???? | | #???????##### ?????# #????# #???? | | #######??????# #######?????### #????# #???? | | #?????###?????????????# #????# #???? | | #?????????????????????# ##???# #???? | | ####### #????????????????????## ##??# #???? | | ??????????????????????????????# ##?# #???? | | ??????????????????????????????# ### #???? | | ????????????????????????####??# #???? | | ???????????????????###### #### #???? | | ?????????? ???###### # ## ### ##???? | | ?????????? ## # #%= #?# #????? | | ???????? # ## ### #????? | | ???????? = # #????? | | ??????? = # # ######????? | | ???????? ## # g ##?????????? | | ?????????????? ###??????????? | | ???????????????# ##????????????? | | ????????????????# #?????????????? | | ?????????????????## #######???????? | | ??????????????????# #???????? | | ?????????????????????# @ ##???????? | | ?????????????????????# #???????? | | ????????????????????# #???????? | | ????????????????????# #???????? | | ????????????????????# # ##??????? | | ????????????????????# ## ####???? | | ????????????????????# ####### ##??? | | ????????????????????# ! ##?????## #??? | | ????????????????????### #???????## ##??? | | ?????????????????????? % #????????####???? | | ?????????????????????? r ???????????????? | | ?????????????????????? ???????????????? | | ?????????????????????# ???????????????? | | ?????????????????????# / ???????????????? | | ????????????????????? k ??????????????? | | ?????????????????????? t????????????????? | | ?????????????????????? ##????????????????? | | ??????????????????????? #??????????????????? | | ????????????????????????????????????????????? | | ????????????????????????????????????????????? | | ????????????????????????????????????????????? | | ????????????????????????????????????????????? | | ????????????????????????????????????????????? | | ????????????????????????????????????????????? | | ????????????????????????????????????????????? | +----------------------------------------------------+ Best States ------------- Heat Dissipation 39 Energy Generation 14 Energy Capacity 250 Matter Stores 300 Matter Capacity 300 Sight Range 16 Terrain Scan Density 10 Evasion (%) 45 Targeting Accuracy 6 Recoil Reduction 2 Item Schematics ----------------- None Robot Schematics ------------------ None Fabricated ------------ Nothing Alien Tech Used ----------------- None Achievements -------------- None Challenges ------------ None Game ------ Seed GatlingSpliceSpear Manual? 0 Play Time 00:17:03 Cumulative 38.6 hours Start 2024.04.22 @ 20:54:02 End 2024.04.22 @ 21:10:41 Sessions 1 Manual Loads 0 Difficulty Rogue Special Mode None Game No. 62 Rogue 62 Adventurer 0 Explorer 0 Win Type - Total 0 Types 0/0/0/0/0/0/0/0/0 Lore% 22 Gallery% 29 Achievement% 25 Wizard Run 0 Options --------- Layout 1 ASCII 0 Keyboard 1 Movement Numpad Keybinds 0 Fullscreen 1 Font 24/Smallcaps Map View 50x35 Zoom Use 0% Tactical HUD 1 Map Filters NONE Filters NONE Steam 1 RUN: 33b31d62-1e71-4126-9de1-c32800d4ffdf